Workbook

Sheet табл
B1: Дата | C1: Водитель | D1: Автомобиль | E1: Деньги/Топ
A2: 10 | B2: 2012-12-02 | C2: 1 | D2: 934
A3: 10 | B3: 2012-12-02 | C3: 1 | D3: 934
A4: 10 | B4: 2012-12-02 | C4: 1 | D4: 934
A5: 10 | B5: 2012-12-02 | C5: 1 | D5: 934
A6: 10 | B6: 2012-12-02 | C6: 1 | D6: 934
A7: 10 | B7: 2012-12-02 | C7: 1 | D7: 934
A8: 10 | B8: 2012-12-02 | C8: 1 | D8: 934
A9: 10 | B9: 2012-12-02 | C9: 2 | D9: 669
A10: 10 | B10: 2012-12-02 | C10: 2 | D10: 669
A11: 10 | B11: 2012-12-02 | C11: 2 | D11: 669
A12: 10 | B12: 2012-12-02 | C12: 2 | D12: 669
A13: 10 | B13: 2012-12-02 | C13: 2 | D13: 510 | E13: 100
A14: 10 | B14: 2012-12-02 | C14: 3 | D14: 621
A15: 10 | B15: 2012-12-03 | C15: 1 | D15: 934
A16: 10 | B16: 2012-12-03 | C16: 2 | D16: 669
A17: 10 | B17: 2012-12-03 | C17: 2 | D17: 669
A18: 10 | B18: 2012-12-03 | C18: 2 | D18: 669
A19: 10 | B19: 2012-12-03 | C19: 3 | D19: 907
A20: 10 | B20: 2012-12-03 | C20: 3 | D20: 907
A21: 10 | B21: 2012-12-03 | C21: 3 | D21: 907
A22: 10 | B22: 2012-12-03 | C22: 3 | D22: 907
A23: 10 | B23: 2012-12-03 | C23: 1 | D23: 907
A24: 10 | B24: 2012-12-03 | C24: 1 | D24: 907
A25: 10 | B25: 2012-12-03 | C25: 1 | D25: 907
A26: 10 | B26: 2012-12-03 | C26: 1 | D26: 907
A27: 10 | B27: 2012-12-03 | C27: 1 | D27: 934
A28: 10 | B28: 2012-12-03 | C28: 1 | D28: 934
A29: 10 | B29: 2012-12-03 | C29: 1 | D29: 934
A30: 10 | B30: 2012-12-03 | C30: 1 | D30: 934
A31: 10 | B31: 2012-12-03 | C31: 1 | D31: 934
A32: 10 | B32: 2012-12-03 | C32: 1 | D32: 934
A33: 10 | B33: 2012-12-03 | C33: 1 | D33: 934
A34: 10 | B34: 2012-12-03 | C34: 1 | D34: 934
A35: 10 | B35: 2012-12-03 | C35: 1 | D35: 934
A36: 10 | B36: 2012-12-03 | C36: 1 | D36: 934
A37: 10 | B37: 2012-12-03 | C37: 1 | D37: 934
A38: 10 | B38: 2012-12-03 | C38: 2 | D38: 510
A39: 10 | B39: 2012-12-03 | C39: 2 | D39: 510
A40: 10 | B40: 2012-12-03 | C40: 2 | D40: 510
A41: 10 | B41: 2012-12-03 | C41: 2 | D41: 510
A42: 10 | B42: 2012-12-03 | C42: 3 | D42: 669 | E42: 30
A43: 10 | B43: 2012-12-03 | C43: 3 | D43: 669
A44: 10 | B44: 2012-12-03 | C44: 3 | D44: 669
A45: 10 | B45: 2012-12-03 | C45: 3 | D45: 669
A46: 10 | B46: 2012-12-03 | C46: 3 | D46: 669
A47: 10 | B47: 2012-12-04 | C47: 1 | D47: 934
A48: 10 | B48: 2012-12-04 | C48: 1 | D48: 907
A49: 10 | B49: 2012-12-04 | C49: 2 | D49: 314
A50: 10 | B50: 2012-12-04 | C50: 3 | D50: 907 | E50: 50
A51: 10 | B51: 2012-12-04 | C51: 3 | D51: 907
A52: 10 | B52: 2012-12-04 | C52: 3 | D52: 669
A53: 10 | B53: 2012-12-04 | C53: 3 | D53: 669
A54: 10 | B54: 2012-12-04 | C54: 3 | D54: 669
A55: 10 | B55: 2012-12-04 | C55: 1 | D55: 907
A56: 10 | B56: 2012-12-04 | C56: 1 | D56: 907
A57: 10 | B57: 2012-12-04 | C57: 1 | D57: 907
A58: 10 | B58: 2012-12-04 | C58: 1 | D58: 934 | E58: 100
A59: 10 | B59: 2012-12-04 | C59: 1 | D59: 934
A60: 10 | B60: 2012-12-04 | C60: 1 | D60: 934
A61: 10 | B61: 2012-12-04 | C61: 1 | D61: 934
A62: 10 | B62: 2012-12-04 | C62: 1 | D62: 934
A63: 10 | B63: 2012-12-04 | C63: 1 | D63: 934
A64: 10 | B64: 2012-12-04 | C64: 1 | D64: 934
A65: 10 | B65: 2012-12-04 | C65: 1 | D65: 934
A66: 10 | B66: 2012-12-04 | C66: 1 | D66: 934
A67: 10 | B67: 2012-12-04 | C67: 1 | D67: 934
A68: 10 | B68: 2012-12-04 | D68: 510
A69: 10 | B69: 2012-12-04 | C69: 2 | D69: 510
A70: 10 | B70: 2012-12-04 | C70: 2 | D70: 510
A71: 10 | B71: 2012-12-04 | C71: 2 | D71: 510
A72: 10 | B72: 2012-12-04 | C72: 2 | D72: 510
A73: 10 | B73: 2012-12-04 | C73: 3 | D73: 669
A74: 10 | B74: 2012-12-04 | C74: 3 | D74: 669
A75: 10 | B75: 2012-12-04 | C75: 3 | D75: 669
A76: 10 | B76: 2012-12-04 | C76: 3 | D76: 669
A77: 10 | B77: 2012-12-04 | C77: 3 | D77: 669
A78: 10 | B78: 2012-12-05 | C78: 1 | D78: 907
A79: 10 | B79: 2012-12-05 | C79: 1 | D79: 934
A80: 10 | B80: 2012-12-05 | C80: 2 | D80: 669 | E80: 30
A81: 10 | B81: 2012-12-05 | C81: 2 | D81: 669
A82: 10 | B82: 2012-12-05 | C82: 3 | D82: 621
A83: 10 | B83: 2012-12-05 | C83: 3 | D83: 621
A84: 10 | B84: 2012-12-05 | C84: 3 | D84: 907
A85: 10 | B85: 2012-12-05 | C85: 1 | D85: 907 | E85: 45
A86: 10 | B86: 2012-12-05 | C86: 1 | D86: 907
A87: 10 | B87: 2012-12-05 | C87: 1 | D87: 907
A88: 10 | B88: 2012-12-05 | C88: 1 | D88: 934
A89: 10 | B89: 2012-12-05 | C89: 1 | D89: 934
A90: 10 | B90: 2012-12-05 | C90: 1 | D90: 934
A91: 10 | B91: 2012-12-05 | C91: 1 | D91: 934
A92: 10 | B92: 2012-12-05 | C92: 1 | D92: 934
A93: 10 | B93: 2012-12-05 | C93: 1 | D93: 934
A94: 10 | B94: 2012-12-05 | C94: 1 | D94: 934
A95: 10 | B95: 2012-12-05 | C95: 1 | D95: 934
A96: 10 | B96: 2012-12-05 | C96: 1 | D96: 934
A97: 10 | B97: 2012-12-05 | C97: 1 | D97: 934
A98: 10 | B98: 2012-12-05 | C98: 1 | D98: 934
A99: 10 | B99: 2012-12-05 | C99: 2 | D99: 669
A100: 10 | B100: 2012-12-05 | C100: 2 | D100: 669
A101: 10 | B101: 2012-12-05 | C101: 2 | D101: 669
A102: 10 | B102: 2012-12-05 | C102: 2 | D102: 669
A103: 10 | B103: 2012-12-05 | C103: 2 | D103: 669
A104: 10 | B104: 2012-12-05 | C104: 2 | D104: 510
A105: 10 | B105: 2012-12-05 | C105: 2 | D105: 510 | E105: 100
A106: 10 | B106: 2012-12-06 | C106: 1 | D106: 934
A107: 10 | B107: 2012-12-06 | C107: 2 | D107: 314 | E107: 100
A108: 10 | B108: 2012-12-06 | C108: 3 | D108: 907
A109: 10 | B109: 2012-12-06 | C109: 3 | D109: 621
A110: 10 | B110: 2012-12-06 | C110: 3 | D110: 907
A111: 10 | B111: 2012-12-06 | C111: 3 | D111: 907
A112: 10 | B112: 2012-12-06 | C112: 3 | D112: 907
A113: 10 | B113: 2012-12-06 | C113: 3 | D113: 907
A114: 10 | B114: 2012-12-06 | C114: 3 | D114: 621
A115: 10 | B115: 2012-12-06 | C115: 1 | D115: 907
A116: 10 | B116: 2012-12-06 | C116: 1 | D116: 907
A117: 10 | B117: 2012-12-06 | C117: 1 | D117: 907
A118: 10 | B118: 2012-12-06 | C118: 1 | D118: 907
A119: 10 | B119: 2012-12-06 | C119: 1 | D119: 907
A120: 10 | B120: 2012-12-06 | C120: 1 | D120: 934
A121: 10 | B121: 2012-12-06 | C121: 1 | D121: 934
A122: 10 | B122: 2012-12-06 | C122: 1 | D122: 934
A123: 10 | B123: 2012-12-06 | C123: 1 | D123: 934
A124: 10 | B124: 2012-12-06 | C124: 1 | D124: 934
A125: 10 | B125: 2012-12-06 | C125: 1 | D125: 934
A126: 10 | B126: 2012-12-06 | C126: 1 | D126: 934
A127: 10 | B127: 2012-12-06 | C127: 1 | D127: 934
A128: 10 | B128: 2012-12-06 | C128: 1 | D128: 934
A129: 10 | B129: 2012-12-06 | C129: 1 | D129: 934
A130: 10 | B130: 2012-12-06 | C130: 2 | D130: 510
A131: 10 | B131: 2012-12-06 | C131: 2 | D131: 510
A132: 10 | B132: 2012-12-06 | C132: 2 | D132: 510
A133: 10 | B133: 2012-12-06 | C133: 2 | D133: 510
A134: 10 | B134: 2012-12-06 | C134: 2 | D134: 510
A135: 10 | B135: 2012-12-06 | C135: 2 | D135: 510
A136: 10 | B136: 2012-12-06 | C136: 3 | D136: 669
A137: 10 | B137: 2012-12-06 | C137: 3 | D137: 669
A138: 10 | B138: 2012-12-06 | C138: 3 | D138: 669
A139: 10 | B139: 2012-12-06 | C139: 3 | D139: 669
A140: 10 | B140: 2012-12-06 | C140: 3 | D140: 669
A141: 10 | B141: 2012-12-06 | C141: 3 | D141: 669
A142: 10 | B142: 2012-12-07 | C142: 1 | D142: 934
A143: 10 | B143: 2012-12-07 | C143: 1 | D143: 907
A144: 10 | B144: 2012-12-07 | C144: 2 | D144: 669
A145: 10 | B145: 2012-12-07 | C145: 2 | D145: 669
A146: 10 | B146: 2012-12-07 | C146: 3 | D146: 621
A147: 10 | B147: 2012-12-07 | C147: 3 | D147: 907 | E147: 40
A148: 10 | B148: 2012-12-07 | C148: 3 | D148: 621
A149: 10 | B149: 2012-12-07 | C149: 3 | D149: 621
A150: 10 | B150: 2012-12-07 | C150: 1 | D150: 907
A151: 10 | B151: 2012-12-07 | C151: 1 | D151: 907
A152: 10 | B152: 2012-12-07 | C152: 1 | D152: 934 | E152: 100
A153: 10 | B153: 2012-12-07 | C153: 1 | D153: 934
A154: 10 | B154: 2012-12-07 | C154: 1 | D154: 934
A155: 10 | B155: 2012-12-07 | C155: 1 | D155: 934
A156: 10 | B156: 2012-12-07 | C156: 1 | D156: 934
A157: 10 | B157: 2012-12-07 | C157: 1 | D157: 934
A158: 10 | B158: 2012-12-07 | C158: 1 | D158: 934
A159: 10 | B159: 2012-12-07 | C159: 1 | D159: 934
A160: 10 | B160: 2012-12-07 | C160: 1 | D160: 934
A161: 10 | B161: 2012-12-07 | C161: 1 | D161: 934
A162: 10 | B162: 2012-12-07 | C162: 1 | D162: 934
A163: 10 | B163: 2012-12-07 | C163: 2 | D163: 510
A164: 10 | B164: 2012-12-07 | C164: 2 | D164: 510
A165: 10 | B165: 2012-12-07 | C165: 2 | D165: 510
A166: 10 | B166: 2012-12-07 | C166: 2 | D166: 510
A167: 10 | B167: 2012-12-07 | C167: 2 | D167: 510
A168: 10 | B168: 2012-12-07 | C168: 2 | D168: 510 | E168: 100
A169: 10 | B169: 2012-12-07 | C169: 3 | D169: 669 | E169: 30
A170: 10 | B170: 2012-12-07 | C170: 3 | D170: 669
A171: 10 | B171: 2012-12-07 | C171: 3 | D171: 669
A172: 10 | B172: 2012-12-07 | C172: 3 | D172: 669
A173: 10 | B173: 2012-12-07 | C173: 3 | D173: 669
A174: 10 | B174: 2012-12-07 | C174: 3 | D174: 621 | E174: 50
A175: 10 | B175: 2012-12-07 | C175: 3 | D175: 621
A176: 10 | B176: 2012-12-08 | C176: 1 | D176: 934
A177: 10 | B177: 2012-12-08 | C177: 1 | D177: 907
A178: 10 | B178: 2012-12-08 | C178: 1 | D178: 907
A179: 10 | B179: 2012-12-08 | C179: 1 | D179: 907
A180: 10 | B180: 2012-12-08 | C180: 2 | D180: 314 | E180: 50
A181: 10 | B181: 2012-12-08 | C181: 3 | D181: 669
A182: 10 | B182: 2012-12-08 | C182: 3 | D182: 907
A183: 10 | B183: 2012-12-08 | C183: 3 | D183: 907
A184: 10 | B184: 2012-12-08 | C184: 3 | D184: 621
A185: 10 | B185: 2012-12-08 | C185: 3 | D185: 621
A186: 10 | B186: 2012-12-08 | C186: 1 | D186: 907
A187: 10 | B187: 2012-12-08 | C187: 1 | D187: 907
A188: 10 | B188: 2012-12-08 | C188: 1 | D188: 907
A189: 10 | B189: 2012-12-08 | C189: 1 | D189: 907
A190: 10 | B190: 2012-12-08 | C190: 1 | D190: 907
A191: 10 | B191: 2012-12-08 | C191: 1 | D191: 907
A192: 10 | B192: 2012-12-08 | C192: 2 | D192: 510 | E192: 67
A193: 10 | B193: 2012-12-08 | C193: 2 | D193: 669
A194: 10 | B194: 2012-12-08 | C194: 2 | D194: 669
A195: 10 | B195: 2012-12-08 | C195: 2 | D195: 669
A196: 10 | B196: 2012-12-08 | C196: 2 | D196: 669
A197: 10 | B197: 2012-12-08 | C197: 2 | D197: 669
A198: 10 | B198: 2012-12-08 | C198: 2 | D198: 510
A199: 10 | B199: 2012-12-08 | C199: 2 | D199: 510
A200: 10 | B200: 2012-12-08 | C200: 2 | D200: 510
... 67 more rows

Sheet Sheet1
C6: Топливо
C7: 934 | D7: 314 | E7: 621 | F7: 510 | G7: 907 | H7: 669
B8: Итого | C8: =SUMIFS(табл!E:E,табл!D:D,934,табл!A:A,10) -> 400 | D8: =SUMIFS(табл!E:E,табл!D:D,314,табл!A:A,10) -> 150 | E8: =SUMIFS(табл!E:E,табл!D:D,621,табл!A:A,10) -> 94 | F8: =SUMIFS(табл!E:E,табл!D:D,510,табл!A:A,10) -> 467 | G8: =SUMIFS(табл!E:E,табл!D:D,907,табл!A:A,10) -> 180 | H8: =SUMIFS(табл!E:E,табл!D:D,669,табл!A:A,10) -> 256
B9: Руб. | C9: =C8*F14 -> 11960 | D9: =D8*F14 -> 4485 | E9: =E8*F14 -> 2810.6 | F9: =F8*F14 -> 13963.3 | G9: =G8*F15 -> 5103 | H9: =H8*F15 -> 7257.6 | I9: =SUM(C9:H9) -> 45579.5
B10: Расход | C10: 0 | D10: =SUMIFS(табл!E:E,табл!B:B,"28.11.2012",табл!D:D,314) -> 0
B11: Кол-во рейсов | C11: =COUNTIFS(табл!D:D,934,табл!A:A,10) -> 88 | D11: =COUNTIFS(табл!D:D,314,табл!A:A,10) -> 4 | E11: =COUNTIFS(табл!D:D,621,табл!A:A,10) -> 22 | F11: =COUNTIFS(табл!D:D,510,табл!A:A,10) -> 37 | G11: =COUNTIFS(табл!D:D,907,табл!A:A,10) -> 56 | H11: =COUNTIFS(табл!D:D,669,табл!A:A,10) -> 59
B12: Установки
B13: Прогоны
D14: дт | F14: 29.9
D15: АИ92 | F15: 28.35
C22: Пробег
B23: Дата | C23: 934 | D23: 314 | E23: 621 | F23: 510 | G23: 907 | H23: 669
B24: 2012-12-07 | C24: 23248 | E24: 20410 | F24: 64905 | G24: 75425 | H24: 88823
B25: 2012-12-10 | C25: 24248 | E25: 25410 | F25: 66905 | G25: 77425 | H25: 89823
